fUSD/lending_fUSD_20241125
["ID","MTS","AMOUNT","RATE_DAILY","PERIOD"]
[343266172,1732536669702,-635.51,0.00040041,21]
[343266173,1732536669711,-1329.57,0.00040041,21]
[343266174,1732536669721,-500.0,0.00040041,21]
[343266175,1732536669730,-500.0,0.00040041,21]
[343266176,1732536669739,-3316.78,0.00040041,21]
[343266177,1732536669749,-500.0,0.00040041,21]
[343266178,1732536669758,-500.0,0.00040041,21]
[343266179,1732536669767,-500.0,0.00040041,21]
[343266180,1732536669777,-500.0,0.00040041,21]
[343266181,1732536669786,-913.11,0.00040041,21]
[343266182,1732536669795,-528.36,0.00040041,21]
[343266183,1732536669805,-1044.85,0.00040041,21]
[343266184,1732536669815,-500.0,0.00040041,21]
[343266185,1732536669824,-500.0,0.00040041,21]
[343266186,1732536669833,-500.0,0.00040041,21]
[343266187,1732536669842,-1961.52,0.00040041,21]
[343266188,1732536669852,-609.71195507,0.00040041,21]
[343266189,1732536669864,-500.0,0.00040041,21]
[343266190,1732536669873,-500.0,0.00040041,21]
[343266191,1732536669882,-1014.5,0.00040041,21]
[343266192,1732536669891,-1204.64,0.00040041,21]
[343266193,1732536669901,-509.82,0.00040041,21]
[343266194,1732536669910,-500.0,0.00040041,21]
[343266195,1732536669919,-500.0,0.00040041,21]
[343266196,1732536669928,-500.0,0.00040041,21]
[343266197,1732536669937,-2806.06,0.00040041,21]
[343266198,1732536669947,-396.42,0.00040041,21]
[343266199,1732536669956,-713.37,0.00040041,21]
[343266200,1732536669965,-2152.31,0.00040041,21]
[343266201,1732536669975,-500.0,0.00040041,21]
[343266202,1732536669984,-2862.22,0.00040041,21]
[343266203,1732536669993,-500.0,0.00040041,21]
[343266204,1732536670003,-500.0,0.00040041,21]
[343266205,1732536670012,-514.07,0.00040041,21]
[343266206,1732536670022,-818.24,0.00040041,21]
[343266207,1732536670031,-594.32,0.00040041,21]
[343266208,1732536670041,-5698.56,0.00040041,21]
[343266209,1732536670050,-2231.16,0.00040041,21]
[343266210,1732536670060,-500.0,0.00040041,21]
[343266211,1732536670069,-500.0,0.00040041,21]
[343266212,1732536670079,-3033.86,0.00040041,21]
[343266213,1732536670088,-500.0,0.00040041,21]
[343266214,1732536670100,-500.0,0.00040041,21]
[343266215,1732536670110,-524.9986808,0.00040245,2]
[343266216,1732536670120,-3011.8462579,0.00040245,2]
[343266217,1732536670130,-4975.3938583,0.00040245,2]
[343266218,1732536670139,-2511.0,0.00040247,120]
[343266219,1732536670150,-500.0,0.00040273,21]
[343266220,1732536670160,-500.0,0.00040273,21]
[343266221,1732536670169,-500.0,0.00040273,21]
[343266222,1732536670179,-500.0,0.00040273,21]
[343266223,1732536670189,-500.0,0.00040273,21]
[343266224,1732536670198,-500.0,0.00040273,21]
[343266225,1732536670207,-500.0,0.00040273,21]
[343266226,1732536670216,-675.2,0.00040273,21]
[343266227,1732536670225,-500.0,0.00040273,21]
[343266228,1732536670235,-1143.4,0.00040273,21]
[343266229,1732536670244,-553.02,0.00040273,21]
[343266230,1732536670254,-500.0,0.00040273,21]
[343266231,1732536670264,-216.53,0.00040273,21]
[343266232,1732536670274,-500.0,0.00040273,21]
[343266233,1732536670284,-500.0,0.00040273,21]
[343266234,1732536670294,-660.04,0.00040273,21]
[343266235,1732536670303,-500.0,0.00040273,21]
[343266236,1732536670312,-500.0,0.00040273,21]
[343266237,1732536670322,-500.0,0.00040273,21]
[343266238,1732536670331,-550.37,0.00040273,21]
[343266239,1732536670340,-500.0,0.00040273,120]
[343266240,1732536670349,-500.0,0.00040273,21]
[343266241,1732536670361,-915.74,0.00040273,21]
[343266242,1732536670371,-500.0,0.00040273,21]
[343266243,1732536670380,-623.45,0.00040273,21]
[343266244,1732536670389,-529.4,0.00040273,21]
[343266245,1732536670399,-500.0,0.00040273,21]
[343266246,1732536670409,-500.0,0.00040273,21]
[343266247,1732536670418,-500.0,0.00040273,21]
[343266248,1732536670428,-661.32,0.00040273,21]
[343266249,1732536670437,-592.89,0.00040273,21]
[343266250,1732536670447,-573.95,0.00040273,21]
[343266251,1732536670457,-596.54,0.00040273,21]
[343266252,1732536670467,-500.0,0.00040273,21]
[343266253,1732536670477,-500.0,0.00040273,21]
[343266254,1732536670486,-500.0,0.00040273,21]
[343266255,1732536670496,-501.9,0.00040273,21]
[343266256,1732536670506,-500.0,0.00040273,21]
[343266257,1732536670515,-500.0,0.00040273,21]
[343266258,1732536670524,-500.0,0.00040273,21]
[343266259,1732536670534,-500.0,0.00040273,21]
[343266260,1732536670543,-615.05,0.00040273,21]
[343266261,1732536670553,-168.6,0.00040273,21]
[343266262,1732536670563,-500.0,0.00040273,21]
[343266263,1732536670573,-890.91,0.00040273,21]
[343266264,1732536670584,-2082.25,0.00040273,21]
[343266265,1732536670593,-500.0,0.00040273,21]
[343266266,1732536670603,-500.0,0.00040273,21]
[343266267,1732536670614,-500.0,0.00040273,21]
[343266268,1732536670624,-500.0,0.00040273,21]
[343266269,1732536670634,-500.0,0.00040273,21]
[343266270,1732536670644,-500.0,0.00040273,21]
[343266271,1732536670653,-500.0,0.00040273,21]
[343266272,1732536670663,-500.0,0.00040273,21]
[343266273,1732536670674,-506.49,0.00040273,21]
[343266274,1732536670684,-500.0,0.00040273,21]
[343266275,1732536670694,-500.0,0.00040273,21]
[343266276,1732536670704,-500.0,0.00040273,21]
[343266277,1732536670714,-500.0,0.00040273,21]
[343266278,1732536670723,-500.0,0.00040273,21]
[343266279,1732536670733,-500.0,0.00040273,21]
[343266280,1732536670742,-513.79,0.00040273,21]
[343266281,1732536670751,-648.22,0.00040273,21]
[343266282,1732536670761,-391.48,0.00040273,21]
[343266283,1732536670771,-500.0,0.00040273,21]
[343266284,1732536670780,-500.0,0.00040273,21]
[343266285,1732536670790,-903.22,0.00040273,21]
[343266286,1732536670799,-500.0,0.00040273,21]
[343266287,1732536670808,-500.0,0.00040273,21]
[343266288,1732536670818,-500.0,0.00040273,21]
[343266289,1732536670828,-500.0,0.00040273,21]
[343266290,1732536670838,-500.0,0.00040273,21]
[343266291,1732536670848,-500.0,0.00040273,21]
[343266292,1732536670859,-500.0,0.00040273,21]
[343266293,1732536670869,-155.39,0.00040273,21]
[343266294,1732536670879,-500.0,0.00040273,21]
[343266295,1732536670888,-1204.4,0.00040273,21]
[343266296,1732536670898,-500.0,0.00040273,21]
[343266297,1732536670907,-639.41,0.00040273,21]
[343266298,1732536670917,-783.23,0.00040273,21]
[343266299,1732536670927,-500.0,0.00040273,21]
[343266300,1732536670937,-154.92017665,0.00040273,21]
[343266301,1732536670947,-500.0,0.00040273,21]
[343266302,1732536670957,-270.67019407,0.00040273,21]
[343266303,1732536670967,-500.0,0.00040273,21]
[343266304,1732536670978,-500.0,0.00040273,21]
[343266305,1732536670988,-462.76,0.00040273,21]
[343266306,1732536670997,-153.13242105,0.00040273,21]
[343266307,1732536671007,-500.0,0.00040273,21]
[343266308,1732536671018,-500.0,0.00040273,21]
[343266309,1732536671028,-500.0,0.00040273,21]
[343266310,1732536671037,-1024.03,0.00040273,21]
[343266311,1732536671048,-555.75293502,0.00040273,21]
[343266312,1732536671058,-500.0,0.00040273,21]
[343266313,1732536671068,-500.0,0.00040273,21]
[343266314,1732536671077,-500.0,0.00040273,21]
[343266315,1732536671088,-249.26,0.00040273,21]
[343266316,1732536671100,-500.0,0.00040273,21]
[343266317,1732536671113,-500.0,0.00040273,21]
[343266318,1732536671123,-500.0,0.00040273,21]
[343266319,1732536671134,-500.0,0.00040273,21]
[343266320,1732536671145,-500.0,0.00040273,21]
[343266321,1732536671155,-500.0,0.00040273,21]
[343266322,1732536671164,-500.0,0.00040273,21]
[343266323,1732536671175,-500.0,0.00040273,21]
[343266324,1732536671187,-2874.42,0.00040273,21]
[343266325,1732536671197,-367.59,0.00040273,21]
[343266326,1732536671207,-634.92,0.00040273,21]
[343266327,1732536671218,-500.0,0.00040273,21]
[343266328,1732536671228,-775.26,0.00040273,21]
[343266329,1732536671239,-500.0,0.00040273,21]
[343266330,1732536671250,-552.41,0.00040273,21]
[343266331,1732536671261,-500.0,0.00040273,7]
[343266332,1732536671272,-500.0,0.00040273,21]
[343266333,1732536671283,-500.0,0.00040273,21]
[343266334,1732536671293,-3082.64,0.00040273,21]
[343266335,1732536671304,-500.0,0.00040273,21]
[343266336,1732536671314,-580.54946213,0.00040273,21]
[343266337,1732536671326,-500.0,0.00040273,21]
[343266338,1732536671336,-500.0,0.00040273,21]
[343266339,1732536671346,-689.26,0.00040273,21]
[343266340,1732536671356,-739.61,0.00040273,21]
[343266341,1732536671371,-473.16,0.00040273,21]
[343266342,1732536671382,-500.0,0.00040273,21]
[343266343,1732536671392,-202.47,0.00040273,21]
[343266344,1732536671404,-3431.21,0.00040273,21]
[343266345,1732536671415,-500.0,0.00040273,21]
[343266346,1732536671425,-535.48,0.00040273,21]
[343266347,1732536671436,-2326.47,0.00040273,21]
[343266348,1732536671445,-817.33,0.00040273,21]
[343266349,1732536671456,-8053.63,0.00040273,21]
[343266350,1732536671466,-939.05,0.00040273,21]
[343266351,1732536671476,-576.02,0.00040273,21]
[343266352,1732536671486,-8604.27,0.00040273,21]
[343266353,1732536671496,-659.22,0.00040273,21]
[343266354,1732536671506,-168.017315,0.00040273,21]
[343266355,1732536671516,-500.0,0.00040273,21]
[343266356,1732536671525,-151.0,0.00040273,14]
[343266357,1732536671535,-674.77,0.00040273,2]
[343266358,1732536671544,-500.0,0.00040273,21]
[343266359,1732536671554,-500.0,0.00040273,21]
[343266360,1732536671565,-897.77,0.00040273,21]
[343266361,1732536671575,-500.0,0.00040273,21]
[343266362,1732536671586,-500.0,0.00040273,21]
[343266363,1732536671596,-151.0,0.00040273,14]
[343266364,1732536671606,-5549.98,0.00040273,21]
[343266365,1732536671616,-500.0,0.00040273,21]
[343266366,1732536671625,-500.0,0.00040273,21]
[343266367,1732536671635,-500.0,0.00040273,21]
[343266368,1732536671645,-151.0,0.00040273,14]
[343266369,1732536671655,-164.95,0.00040273,21]
[343266370,1732536671665,-151.0,0.00040273,14]
[343266371,1732536671675,-500.0,0.00040273,21]
[343266372,1732536671684,-747.44,0.00040273,21]
[343266373,1732536671694,-1247.78,0.00040273,21]
[343266374,1732536671704,-500.0,0.00040273,21]
[343266375,1732536671714,-726.59,0.00040273,21]
[343266376,1732536671724,-1129.77,0.00040273,21]
[343266377,1732536671734,-963.68,0.00040273,21]
[343266378,1732536671744,-500.0,0.00040273,21]
[343266379,1732536671754,-3123.05,0.00040273,21]
[343266380,1732536671764,-500.0,0.00040273,21]
[343266381,1732536671774,-500.0,0.00040273,21]
[343266382,1732536671786,-634.48,0.00040273,21]
[343266383,1732536671795,-500.0,0.00040273,21]
[343266384,1732536671805,-500.0,0.00040273,21]
[343266385,1732536671815,-151.0,0.00040273,14]
[343266386,1732536671825,-547.96,0.00040273,21]
[343266387,1732536671835,-151.0,0.00040273,14]
[343266388,1732536671845,-727.18,0.00040273,21]
[343266389,1732536671855,-151.0,0.00040273,14]
[343266390,1732536671866,-685.58,0.00040273,21]
[343266391,1732536671876,-432.39414465,0.00040273,21]
[343266392,1732536671886,-8008.7,0.00040273,21]
[343266393,1732536671895,-500.0,0.00040273,21]
[343266394,1732536671906,-151.0,0.00040273,14]
[343266395,1732536671915,-500.0,0.00040273,21]
[343266396,1732536671925,-913.31,0.00040273,21]
[343266397,1732536671935,-240.071069,0.00040273,14]
[343266398,1732536671944,-500.0,0.00040273,21]
[343266399,1732536671954,-500.0,0.00040273,21]
[343266400,1732536671963,-1103.1,0.00040273,21]
[343266401,1732536671974,-1042.25,0.00040273,21]
[343266402,1732536671984,-500.0,0.00040273,21]
[343266403,1732536671995,-500.0,0.00040273,21]
[343266404,1732536672005,-264.69385414,0.00040273,21]
[343266405,1732536672015,-518.2,0.00040273,21]
[343266406,1732536672025,-525.44,0.00040273,21]
[343266407,1732536672037,-500.0,0.00040273,21]
[343266408,1732536672047,-714.29,0.00040273,21]
[343266409,1732536672057,-1098.83,0.00040273,21]
[343266410,1732536672068,-599.99,0.00040273,21]
[343266411,1732536672078,-151.0,0.00040273,14]
[343266412,1732536672088,-500.0,0.00040273,21]
[343266413,1732536672100,-192.35,0.00040273,21]
[343266414,1732536672114,-500.0,0.00040273,21]
[343266415,1732536672123,-536.64,0.00040273,21]
[343266416,1732536672134,-459.34,0.00040273,21]
[343266417,1732536672144,-2500.0,0.00040273,14]
[343266418,1732536672154,-231.435469,0.00040273,14]
[343266419,1732536672164,-500.0,0.00040273,21]
[343266420,1732536672174,-3141.32,0.00040273,21]
[343266421,1732536672185,-150.76,0.00040273,21]
[343266422,1732536672195,-231.435469,0.00040273,14]
[343266423,1732536672206,-500.0,0.00040273,21]
[343266424,1732536672216,-1749.61,0.00040273,21]
[343266425,1732536672226,-2500.0,0.00040273,14]
[343266426,1732536672236,-520.31,0.00040273,21]
[343266427,1732536672246,-151.0,0.00040273,14]
[343266428,1732536672256,-3086.47,0.00040273,21]
[343266429,1732536672266,-999.78,0.00040273,21]
[343266430,1732536672278,-702.08,0.00040273,21]
[343266431,1732536672288,-500.0,0.00040273,21]
[343266432,1732536672298,-500.0,0.00040273,21]
[343266433,1732536672308,-516.76,0.00040273,21]
[343266434,1732536672319,-599.84,0.00040273,21]
[343266435,1732536672329,-500.0,0.00040273,21]
[343266436,1732536672340,-500.0,0.00040273,21]
[343266437,1732536672350,-843.37,0.00040273,21]
[343266438,1732536672361,-897.11,0.00040273,21]
[343266439,1732536672371,-500.0,0.00040273,21]
[343266440,1732536672380,-1516.6,0.00040273,21]
[343266441,1732536672390,-622.73,0.00040273,21]
[343266442,1732536672400,-4321.07,0.00040273,21]
[343266443,1732536672410,-500.0,0.00040273,21]
[343266444,1732536672420,-1501.72,0.00040273,21]
[343266445,1732536672430,-500.0,0.00040273,21]
[343266446,1732536672441,-500.0,0.00040273,21]
[343266447,1732536672450,-21441.79,0.00040273,21]
[343266448,1732536672460,-3276.7,0.00040273,21]
[343266449,1732536672471,-500.0,0.00040273,21]
[343266450,1732536672480,-2182.69,0.00040273,21]
[343266451,1732536672490,-500.0,0.00040273,21]
[343266452,1732536672499,-500.0,0.00040273,21]
[343266453,1732536672509,-500.0,0.00040273,21]
[343266454,1732536672519,-2334.22,0.00040273,21]
[343266455,1732536672529,-1941.42,0.00040273,21]
[343266456,1732536672539,-500.0,0.00040273,21]
[343266457,1732536672549,-311.31,0.00040273,21]
[343266458,1732536672559,-1034.74,0.00040273,21]
[343266459,1732536672570,-548.14,0.00040273,21]
[343266460,1732536672580,-500.0,0.00040273,21]
[343266461,1732536672591,-500.0,0.00040273,21]
[343266462,1732536672601,-357.87433461,0.00040273,21]
[343266463,1732536672614,-1055.46,0.00040273,21]
[343266464,1732536672624,-574.77,0.00040314,21]
[343266465,1732536672797,-500.0,0.00040315,21]
[343266466,1732536672808,-500.0,0.00040315,21]
[343266467,1732536672818,-500.0,0.00040315,21]
[343266468,1732536672827,-500.0,0.00040315,21]
[343266469,1732536672836,-500.0,0.00040315,21]
[343266470,1732536672846,-423.15,0.00040315,21]
[343266471,1732536672856,-500.0,0.00040315,21]
[343266472,1732536672867,-500.0,0.00040315,21]
[343266473,1732536672877,-771.52,0.00040315,21]
[343266474,1732536672886,-500.0,0.00040315,21]
[343266475,1732536672895,-500.0,0.00040315,21]
[343266476,1732536672906,-500.0,0.00040315,21]
[343266477,1732536672915,-500.0,0.00040315,21]
[343266478,1732536672925,-206.82,0.00040315,21]
[343266479,1732536672934,-500.0,0.00040315,21]
[343266480,1732536672944,-500.0,0.00040315,21]
[343266481,1732536672953,-500.0,0.00040315,21]
[343266482,1732536672963,-500.0,0.00040315,21]
[343266483,1732536672973,-500.0,0.00040315,21]
[343266484,1732536672984,-500.0,0.00040315,21]
[343266485,1732536672994,-500.0,0.00040315,21]
[343266486,1732536673004,-500.0,0.00040315,21]
[343266487,1732536673014,-658.45,0.00040315,21]
[343266488,1732536673024,-1976.25,0.00040315,21]
[343266489,1732536673034,-500.0,0.00040315,21]
[343266490,1732536673044,-500.0,0.00040315,21]
[343266491,1732536673054,-500.0,0.00040315,21]
[343266492,1732536673064,-500.0,0.00040315,21]
[343266493,1732536673074,-500.0,0.00040315,21]
[343266494,1732536673084,-876.13,0.00040315,21]
[343266495,1732536673095,-500.0,0.00040315,21]
[343266496,1732536673110,-514.52,0.00040315,21]
[343266497,1732536673120,-500.0,0.00040315,21]
[343266498,1732536673129,-168.34,0.00040315,21]
[343266499,1732536673139,-342.79,0.00040315,21]
[343266500,1732536673150,-500.0,0.00040315,21]
[343266501,1732536673159,-500.0,0.00040315,21]
[343266502,1732536673169,-500.0,0.00040315,21]
[343266503,1732536673179,-500.0,0.00040315,21]
[343266504,1732536673189,-500.0,0.00040315,21]
[343266505,1732536673198,-500.0,0.00040315,21]
[343266506,1732536673208,-500.0,0.00040315,21]
[343266507,1732536673218,-7241.01,0.00040315,21]
[343266508,1732536673227,-1484.3,0.00040315,21]
[343266509,1732536673237,-500.0,0.00040315,21]
[343266510,1732536673248,-656.71,0.00040315,21]
[343266511,1732536673258,-481.69788182,0.00040315,21]
[343266512,1732536673268,-1219.29,0.00040315,21]
[343266513,1732536673278,-500.0,0.00040315,21]
[343266514,1732536673288,-1044.42,0.00040315,21]
[343266515,1732536673298,-157.0941006,0.00040315,21]
[343266516,1732536673307,-5313.62,0.00040315,21]
[343266517,1732536673318,-500.0,0.00040315,21]
[343266518,1732536673328,-635.51,0.00040315,21]
[343266519,1732536673337,-1329.57,0.00040315,21]
[343266520,1732536673346,-500.0,0.00040315,21]
[343266521,1732536673354,-500.0,0.00040315,21]
[343266522,1732536673367,-3316.78,0.00040315,21]
[343266523,1732536673378,-500.0,0.00040315,21]
[343266524,1732536673388,-500.0,0.00040315,21]
[343266525,1732536673398,-500.0,0.00040315,21]
[343266526,1732536673409,-500.0,0.00040315,21]
[343266527,1732536673418,-913.11,0.00040315,21]
[343266528,1732536673428,-528.36,0.00040315,21]
[343266529,1732536673438,-1044.85,0.00040315,21]
[343266530,1732536673448,-500.0,0.00040315,21]
[343266531,1732536673458,-500.0,0.00040315,21]
[343266532,1732536673467,-500.0,0.00040315,21]
[343266533,1732536673478,-1961.52,0.00040315,21]
[343266534,1732536673488,-500.0,0.00040315,21]
[343266535,1732536673499,-500.0,0.00040315,21]
[343266536,1732536673509,-1014.5,0.00040315,21]
[343266537,1732536673522,-1204.64,0.00040315,21]
[343266538,1732536673532,-500.0,0.00040315,21]
[343266539,1732536673542,-261.8,0.00040315,21]
[343266540,1732536673551,-387.09258774,0.00040315,21]
[343266541,1732536673562,-2806.06,0.00040315,21]
[343266542,1732536673572,-713.37,0.00040315,21]
[343266543,1732536673582,-2152.31,0.00040315,21]
[343266544,1732536673592,-500.0,0.00040315,21]
[343266545,1732536673603,-2862.22,0.00040315,21]
[343266546,1732536673621,-500.0,0.00040315,21]
[343266547,1732536673630,-500.0,0.00040315,21]
[343266548,1732536673640,-818.24,0.00040315,21]
[343266549,1732536673650,-594.32,0.00040315,21]
[343266550,1732536673659,-5698.56,0.00040315,21]
[343266551,1732536673669,-2231.16,0.00040315,21]
[343266552,1732536673679,-500.0,0.00040315,21]
[343266553,1732536673689,-500.0,0.00040315,21]
[343266554,1732536673699,-3033.86,0.00040315,21]
[343266555,1732536673709,-392.15,0.00040315,21]
[343266556,1732536673719,-500.0,0.00040315,21]
[343266557,1732536673730,-19194.63620207,0.00040446,120]
[343266558,1732536673740,-173.9585,0.00040451,2]
[343266559,1732536673751,-158.0,0.00040496,60]
[343266560,1732536673761,-18937.62937292,0.00040524,15]
[343266561,1732536673771,-151.0,0.00040547,14]
[343266562,1732536673781,-500.0,0.00040547,21]
[343266563,1732536673790,-500.0,0.00040547,21]
[343266564,1732536673800,-500.0,0.00040547,21]
[343266565,1732536673811,-500.0,0.00040547,21]
[343266566,1732536673821,-190.95,0.00040547,21]
[343266567,1732536673831,-500.0,0.00040547,21]
[343266568,1732536673842,-611.99,0.00040547,21]
[343266569,1732536673852,-675.2,0.00040547,21]
[343266570,1732536673866,-500.0,0.00040547,21]
[343266571,1732536673876,-1143.4,0.00040547,21]
[343266572,1732536673886,-553.02,0.00040547,21]
[343266573,1732536673896,-500.0,0.00040547,21]
[343266574,1732536673907,-500.0,0.00040547,21]
[343266575,1732536673917,-511.99,0.00040547,21]
[343266576,1732536673927,-660.04,0.00040547,21]
[343266577,1732536673936,-500.0,0.00040547,21]
[343266578,1732536673947,-435.94,0.00040547,21]
[343266579,1732536673956,-550.37,0.00040547,21]
[343266580,1732536673966,-500.0,0.00040547,120]
[343266581,1732536673976,-500.0,0.00040547,21]
[343266582,1732536673986,-915.74,0.00040547,21]
[343266583,1732536673998,-500.0,0.00040547,21]
[343266584,1732536674008,-529.4,0.00040547,21]
[343266585,1732536674018,-500.0,0.00040547,21]
[343266586,1732536674028,-500.0,0.00040547,21]
[343266587,1732536674038,-338.22640909,0.00040547,21]
[343266588,1732536674047,-661.32,0.00040547,21]
[343266589,1732536674057,-592.89,0.00040547,21]
[343266590,1732536674067,-596.54,0.00040547,21]
[343266591,1732536674077,-500.0,0.00040547,21]
[343266592,1732536674088,-265.41,0.00040547,21]
[343266593,1732536674098,-500.0,0.00040547,21]
[343266594,1732536674113,-501.9,0.00040547,21]
[343266595,1732536674123,-500.0,0.00040547,21]
[343266596,1732536674133,-588.60952148,0.00040547,21]
[343266597,1732536674142,-500.0,0.00040547,21]
[343266598,1732536674154,-500.0,0.00040547,21]
[343266599,1732536674163,-615.05,0.00040547,21]
[343266600,1732536674174,-500.0,0.00040547,21]
[343266601,1732536674184,-890.91,0.00040547,21]
[343266602,1732536674195,-2082.25,0.00040547,21]
[343266603,1732536674206,-500.0,0.00040547,21]
[343266604,1732536674216,-500.0,0.00040547,21]
[343266605,1732536674226,-500.0,0.00040547,21]
[343266606,1732536674237,-500.0,0.00040547,21]
[343266607,1732536674246,-500.0,0.00040547,21]
[343266608,1732536674256,-500.0,0.00040547,21]
[343266609,1732536674267,-500.0,0.00040547,21]
[343266610,1732536674277,-303.69,0.00040547,21]
[343266611,1732536674287,-500.0,0.00040547,21]
[343266612,1732536674297,-500.0,0.00040547,21]
[343266613,1732536674307,-500.0,0.00040547,21]
[343266614,1732536674318,-500.0,0.00040547,21]
[343266615,1732536674327,-500.0,0.00040547,21]
[343266616,1732536674337,-500.0,0.00040547,21]
[343266617,1732536674346,-648.22,0.00040547,21]
[343266618,1732536674356,-500.0,0.00040547,21]
[343266619,1732536674368,-500.0,0.00040547,21]
[343266620,1732536674379,-903.22,0.00040547,21]
[343266621,1732536674389,-500.0,0.00040547,21]
[343266622,1732536674398,-500.0,0.00040547,21]
[343266623,1732536674408,-500.0,0.00040547,21]
[343266624,1732536674418,-500.0,0.00040547,21]
[343266625,1732536674428,-500.0,0.00040547,21]
[343266626,1732536674438,-500.0,0.00040547,21]
[343266627,1732536674448,-500.0,0.00040547,21]
[343266628,1732536674459,-500.0,0.00040547,21]
[343266629,1732536674469,-1204.4,0.00040547,21]
[343266630,1732536674478,-500.0,0.00040547,21]
[343266631,1732536674487,-783.23,0.00040547,21]
[343266632,1732536674497,-395.93,0.00040547,21]
[343266633,1732536674506,-164.4,0.00040547,21]
[343266634,1732536674516,-500.0,0.00040547,21]
[343266635,1732536674526,-500.0,0.00040547,21]
[343266636,1732536674536,-500.0,0.00040547,21]
[343266637,1732536674547,-500.0,0.00040547,21]
[343266638,1732536674558,-500.0,0.00040547,21]
[343266639,1732536674568,-1024.03,0.00040547,21]
[343266640,1732536674578,-500.0,0.00040547,21]
[343266641,1732536674587,-500.0,0.00040547,21]
[343266642,1732536674598,-154.2481075,0.00040547,21]
[343266643,1732536674610,-500.0,0.00040547,21]
[343266644,1732536674620,-500.0,0.00040547,21]
[343266645,1732536674629,-500.0,0.00040547,21]
[343266646,1732536674638,-500.0,0.00040547,21]
[343266647,1732536674649,-549.69028344,0.00040547,21]
[343266648,1732536674660,-151.0,0.00040547,14]
[343266649,1732536674670,-151.0,0.00040547,14]
[343266650,1732536674680,-277.433892,0.00040547,14]
[343266651,1732536674689,-500.0,0.00040547,21]
[343266652,1732536674699,-500.0,0.00040547,21]
[343266653,1732536674709,-151.0,0.00040547,14]
[343266654,1732536674719,-2874.42,0.00040547,21]
[343266655,1732536674728,-634.92,0.00040547,21]
[343266656,1732536674738,-151.0,0.00040547,14]
[343266657,1732536674747,-500.0,0.00040547,21]
[343266658,1732536674757,-775.26,0.00040547,21]
[343266659,1732536674767,-500.0,0.00040547,21]
[343266660,1732536674777,-552.41,0.00040547,21]
[343266661,1732536674787,-151.0,0.00040547,14]
[343266662,1732536674797,-500.0,0.00040547,7]
[343266663,1732536674807,-500.0,0.00040547,21]
[343266664,1732536674816,-500.0,0.00040547,21]
[343266665,1732536674825,-3082.64,0.00040547,21]
[343266666,1732536674835,-500.0,0.00040547,21]
[343266667,1732536674845,-500.0,0.00040547,21]
[343266668,1732536674855,-500.0,0.00040547,21]
[343266669,1732536674866,-689.26,0.00040547,21]
[343266670,1732536674875,-739.61,0.00040547,21]
[343266671,1732536674885,-151.0,0.00040547,14]